bitfinex/quotes_ETHUSD_20250924
["timestamp","ask_amount","ask_price","bid_price","bid_amount"]
[1758708602303,0.4845,4189.7,4189.6,23.0537297]
[1758708602517,0.4845,4189.7,4189.6,20.666867]
[1758708602748,0.4845,4189.7,4189.6,23.0537297]
[1758708602926,0.4845,4189.7,4189.6,17.0917297]
[1758708603143,0.4845,4189.7,4189.6,20.666867]
[1758708603873,0.4845,4189.7,4189.6,23.0537297]
[1758708604174,0.4845,4189.7,4189.6,14.704867]
[1758708604331,0.4845,4189.7,4189.6,20.666867]
[1758708604650,0.4366,4189.7,4189.6,23.0537297]
[1758708604946,0.0002,4189.7,4189.6,23.0537297]
[1758708606846,0.0002,4189.7,4189.6,20.666867]
[1758708607049,0.4366,4189.7,4189.6,20.666867]
[1758708607225,0.0002,4189.7,4189.6,23.0537297]
[1758708609327,0.0004,4189.8,4189.7,2.38680573]
[1758708611347,0.0004,4189.8,4189.7,8.34780573]
[1758708611737,0.0004,4189.8,4189.7,5.961]
[1758708612556,0.0004,4189.8,4189.7,8.34780573]
[1758708612713,0.0004,4189.8,4189.7,5.961]
[1758708616845,0.4329,4189.8,4189.7,1.988]
[1758708617056,3.38293863,4189.8,4189.6,14.585667]
[1758708617338,3.84226986,4189.7,4189.6,14.585667]
[1758708617656,3.84226986,4189.7,4189.6,18.559667]
[1758708618763,1.45546413,4189.7,4189.6,18.559667]
[1758708619143,3.84226986,4189.7,4189.6,18.559667]
[1758708620378,1.45546413,4189.7,4189.6,18.559667]
[1758708621478,1.40756413,4189.7,4189.6,18.559667]
[1758708621847,1.4072948,4189.7,4189.6,18.559667]
[1758708623077,1.4551948,4189.7,4189.6,18.559667]
[1758708623282,0.9747948,4189.7,4189.6,18.559667]
[1758708626287,3.36160053,4189.7,4189.6,18.559667]
[1758708626455,0.9747948,4189.7,4189.6,18.559667]
[1758708626655,3.36160053,4189.7,4189.6,18.559667]
[1758708626955,0.9747948,4189.7,4189.6,18.559667]
[1758708629856,0.51510094,4189.7,4189.6,18.808967]
[1758708630088,0.51510094,4189.7,4189.6,19.258767]
[1758708632491,0.51510094,4189.7,4189.6,18.808967]
[1758708633570,0.51510094,4189.7,4189.6,18.559667]
[1758708634179,2.90190667,4189.7,4189.6,14.585667]
[1758708634380,2.14431922,4189.7,4189.6,14.585667]
[1758708634607,5.17500113,4189.7,4189.6,18.559667]
[1758708634801,4.53112495,4189.7,4189.6,18.559667]
[1758708636473,4.53032495,4189.7,4189.6,18.559667]
[1758708637488,4.53032495,4189.7,4189.6,4.059667]
[1758708637797,0.87111922,4189.7,4189.6,4.059667]
[1758708637993,0.87111922,4189.7,4189.6,18.559667]
[1758708638195,0.63350094,4189.7,4189.6,18.559667]
[1758708641006,0.63350094,4189.7,4189.6,4.059667]
[1758708641506,0.63350094,4189.7,4189.6,18.559667]
[1758708644289,1.27737712,4189.7,4189.6,18.559667]
[1758708647715,3.66418285,4189.7,4189.6,18.559667]
[1758708647890,1.27737712,4189.7,4189.6,18.559667]
[1758708650332,3.66418285,4189.7,4189.6,18.559667]
[1758708650492,3.759251,4189.7,4189.6,18.559667]
[1758708652127,1.37244527,4189.7,4189.6,18.559667]
[1758708652929,1.27859921,4189.7,4189.6,18.806667]
[1758708653128,1.27859921,4189.7,4189.6,19.277567]
[1758708653316,1.27959921,4189.7,4189.6,19.277567]
[1758708654830,1.27959921,4189.7,4189.6,18.806667]
[1758708659230,1.27959921,4189.7,4189.6,19.277567]
[1758708660519,3.66640494,4189.7,4189.6,18.559667]
[1758708660719,1.27959921,4189.7,4189.6,18.559667]
[1758708661317,0.63450094,4189.7,4189.6,18.559667]
[1758708662134,1.27969157,4189.7,4189.6,18.559667]
[1758708662329,0.63450094,4189.7,4189.6,18.559667]
[1758708662631,3.85776832,4189.7,4189.6,18.559667]
[1758708663132,3.41166832,4189.7,4189.6,18.559667]
[1758708663636,3.41086832,4189.7,4189.6,18.559667]
[1758708664442,3.85696832,4189.7,4189.6,18.559667]
[1758708665035,0.63370094,4189.7,4189.6,18.559667]
[1758708665207,0.63370094,4189.7,4189.6,19.269767]
[1758708673830,0.63370094,4189.7,4189.6,18.803967]
[1758708674397,3.02050667,4189.7,4189.6,18.559667]
[1758708675660,0.63370094,4189.7,4189.6,18.559667]
[1758708675858,3.02050667,4189.7,4189.6,18.559667]
[1758708676658,0.63370094,4189.7,4189.6,18.559667]
[1758708677242,0.63370094,4189.7,4189.6,0.004]
[1758708677444,0.63370094,4189.7,4189.6,3.978]
[1758708677665,0.63370094,4189.7,4189.6,19.1797]
[1758708680966,0.63370094,4189.7,4189.6,18.7058]
[1758708681670,0.63370094,4189.7,4189.6,19.1797]
[1758708685898,0.63370094,4189.7,4189.6,18.478]
[1758708686377,0.63370094,4189.7,4189.6,18.7058]
[1758708687302,0.63651661,4189.7,4189.6,18.7058]
[1758708690401,3.02332234,4189.7,4189.6,18.7058]
[1758708690610,3.02252234,4189.7,4189.6,18.7058]
[1758708690796,0.63571661,4189.7,4189.6,18.7058]
[1758708691303,3.02252234,4189.7,4189.6,18.7058]
[1758708691506,3.02252234,4189.7,4189.6,18.478]
[1758708692007,0.63571661,4189.7,4189.6,18.478]
[1758708692308,3.37430196,4189.7,4189.6,14.504]
[1758708692505,3.37430196,4189.7,4189.6,18.477]
[1758708692506,3.82840196,4189.7,4189.6,18.477]
[1758708692722,3.87630196,4189.7,4189.6,18.477]
[1758708693005,3.82840196,4189.7,4189.6,18.477]
[1758708693213,3.37430196,4189.7,4189.6,18.477]
[1758708693505,3.87630196,4189.7,4189.6,3.977]
[1758708693808,5.52825968,4189.7,4189.6,3.977]
[1758708694106,5.52825968,4189.7,4189.6,18.477]
[1758708694508,8.52825968,4189.7,4189.6,14.504]
[1758708694709,7.66830196,4189.7,4189.6,18.477]
[1758708695009,8.95797114,4189.7,4189.6,3.977]
[1758708695396,7.66830196,4189.7,4189.6,3.977]
[1758708695978,7.66830196,4189.7,4189.6,0.004]
[1758708696179,8.95797114,4189.7,4189.6,3.977]
[1758708696800,7.62040196,4189.7,4189.6,3.977]
[1758708697419,7.23400197,4189.7,4189.6,4.2048]
[1758708697608,4.49541662,4189.7,4189.6,4.6787]
[1758708697806,3.63571661,4189.7,4189.6,4.6787]
[1758708698005,6.02252234,4189.7,4189.6,4.6787]
[1758708698790,3.63571661,4189.7,4189.6,4.6787]
[1758708699191,6.02252234,4189.7,4189.6,4.6787]
[1758708700288,6.02252234,4189.7,4189.6,19.1787]
[1758708703524,6.02252234,4189.7,4189.6,18.477]
[1758708703996,6.02252234,4189.7,4189.6,18.7065]
[1758708708143,6.02252234,4189.7,4189.6,19.163]
[1758708708438,3.63571661,4189.7,4189.6,19.163]
[1758708708641,0.63571661,4189.7,4189.6,19.163]
[1758708709117,1.28043014,4189.7,4189.6,19.163]
[1758708709740,0.63571661,4189.7,4189.6,19.163]
[1758708710121,0.51731661,4189.7,4189.6,19.163]
[1758708710445,0.51731661,4189.7,4189.6,21.5498627]
[1758708710943,0.51731661,4189.7,4189.6,21.6690627]
[1758708710944,0.001,4189.7,4189.6,21.6690627]
[1758708713772,0.001,4189.7,4189.6,21.2712]
[1758708713958,0.001,4189.7,4189.6,14.6232]
[1758708714158,0.001,4189.7,4189.6,21.2712]
[1758708715179,0.001,4189.7,4189.6,20.8147]
[1758708715338,0.001,4189.7,4189.6,14.6232]
[1758708715541,0.001,4189.7,4189.6,18.476]
[1758708715794,2.90295941,4189.7,4189.6,18.476]
[1758708716253,0.51615368,4189.7,4189.6,18.476]
[1758708717061,0.51615368,4189.7,4189.6,0.004]
[1758708717251,0.51615368,4189.7,4189.6,3.976]
[1758708717252,3.31715173,4189.7,4189.6,3.976]
[1758708717462,3.31715173,4189.7,4189.6,14.504]
[1758708717645,0.51615368,4189.7,4189.6,18.476]
[1758708717844,0.51535368,4189.7,4189.6,18.476]
[1758708719272,0.51535368,4189.7,4189.6,14.504]
[1758708719438,2.90215941,4189.7,4189.6,18.476]
[1758708720649,4.05857594,4189.7,4189.6,14.504]
[1758708720953,8.49528947,4189.7,4189.6,14.504]
[1758708721278,7.85057594,4189.7,4189.6,14.504]
[1758708721451,7.85057594,4189.7,4189.6,18.476]
[1758708723655,7.80267594,4189.7,4189.6,18.476]
[1758708725086,7.35157594,4189.7,4189.6,18.476]
[1758708725952,5.90215941,4189.7,4189.6,19.1826]
[1758708726580,0.51535368,4189.7,4189.6,19.1826]
[1758708727171,2.90215941,4189.7,4189.6,19.1826]
[1758708730190,0.51535368,4189.7,4189.6,18.7211]
[1758708730386,0.51535368,4189.7,4189.6,19.1826]
[1758708730690,2.90215941,4189.7,4189.6,19.1826]
[1758708733412,0.51535368,4189.7,4189.6,19.1826]
[1758708733712,0.51535368,4189.7,4189.6,19.1492]
[1758708743014,0.51535368,4189.7,4189.6,21.6552627]
[1758708743214,0.0002,4189.7,4189.6,21.6552627]
[1758708744800,0.0208,4189.9,4189.7,2.38675823]
[1758708745004,0.0208,4189.9,4189.8,5.961]
[1758708745234,0.0208,4189.9,4189.8,6.6176]
[1758708749437,0.0208,4189.9,4189.8,9.00434877]
[1758708749644,0.0208,4189.9,4189.8,6.6176]
[1758708750817,0.0208,4189.9,4189.8,9.00434877]
[1758708751550,0.0208,4189.9,4189.8,6.6176]
[1758708751920,0.0208,4189.9,4189.8,9.00434877]
[1758708752518,0.0208,4189.9,4189.8,6.6176]
[1758708753954,0.0208,4189.9,4189.8,9.00434877]
[1758708755449,0.0208,4189.9,4189.8,6.6176]
[1758708755651,0.0208,4189.9,4189.8,9.00434877]
[1758708756558,0.0208,4189.9,4189.8,6.1875]
[1758708756724,0.0208,4189.9,4189.8,9.00234877]
[1758708762081,0.0208,4189.9,4189.8,15.696508]
[1758708762273,0.0208,4189.9,4189.8,9.12154877]
[1758708762460,0.0208,4189.9,4189.8,23.62154877]
[1758708763435,0.0208,4189.9,4189.8,14.6192]
[1758708763640,0.0208,4189.9,4189.8,23.20804877]
[1758708764792,0.0208,4189.9,4189.8,23.64224877]
[1758708768558,0.0208,4189.9,4189.8,29.28354266]
[1758708769884,0.0208,4189.9,4189.8,29.16434266]
[1758708772061,0.02,4189.9,4189.8,29.16434266]
[1758708772923,0.02,4189.9,4189.8,23.20534266]
[1758708773129,0.02,4189.9,4189.8,29.16834266]
[1758708775134,0.02,4189.9,4189.8,28.73414266]
[1758708775830,0.02,4189.9,4189.8,28.49104266]
[1758708776208,0.02,4189.9,4189.8,28.73414266]
[1758708777139,0.02,4189.9,4189.8,28.49104266]
[1758708777614,0.02,4189.9,4189.8,22.84974877]
[1758708778216,0.02,4189.9,4189.8,20.463]
[1758708778436,0.02,4189.9,4189.8,22.84974877]
[1758708779826,0.02,4189.9,4189.8,22.96894877]
[1758708780749,0.02,4189.9,4189.8,20.5822]
[1758708781326,0.02,4189.9,4189.8,22.96894877]
[1758708782356,0.02,4189.9,4189.8,23.65884877]
[1758708783957,0.02,4189.9,4189.8,20.8197]
[1758708784256,0.02,4189.9,4189.8,20.5822]
[1758708784635,0.02,4189.9,4189.8,22.96894877]
[1758708784832,0.02,4189.9,4189.8,20.5822]
[1758708785239,0.02,4189.9,4189.8,22.96894877]
[1758708786461,0.02,4189.9,4189.8,23.20644877]
[1758708789669,0.02,4189.9,4189.8,23.65884877]
[1758708791761,0.02,4189.9,4189.8,23.20644877]
[1758708795488,0.02,4189.9,4189.8,20.5822]
[1758708795905,0.02,4189.9,4189.8,22.96894877]
[1758708797203,0.02,4189.9,4189.8,16.6112]
[1758708797353,1.01503612,4189.9,4189.8,20.5812]
[1758708797705,1.35550153,4189.9,4189.8,20.5812]
[1758708798254,1.35550153,4189.9,4189.8,14.6232]
[1758708798477,3.74219333,4189.9,4189.8,18.474]
[1758708799226,3.74139333,4189.9,4189.8,18.474]
[1758708801715,4.3852363,4189.9,4189.8,18.474]
[1758708804046,8.39309334,4189.9,4189.8,3.974]
[1758708804203,7.53339333,4189.9,4189.8,3.974]
[1758708804545,8.39309334,4189.9,4189.8,3.974]
[1758708805336,7.53339333,4189.9,4189.8,3.974]
[1758708805634,8.39309334,4189.9,4189.8,3.974]
[1758708805835,8.39309334,4189.9,4189.8,0.004]
[1758708806002,8.39309334,4189.9,4189.8,3.974]
[1758708806527,7.53339333,4189.9,4189.8,3.974]
[1758708807255,8.39309334,4189.9,4189.8,3.974]
[1758708807549,7.53339333,4189.9,4189.8,3.974]
[1758708808521,3.0,4189.8,4189.6,0.004]
[1758708808733,13.27223516,4189.7,4189.6,0.004]
[1758708808921,14.99320434,4189.7,4189.6,0.004]
[1758708809504,9.35191045,4189.7,4189.6,0.004]
[1758708809710,14.99320434,4189.7,4189.6,0.004]
[1758708810134,3.17897665,4189.4,4189.3,0.004]
[1758708810339,14.72739281,4189.4,4189.3,0.004]
[1758708810540,15.15869281,4189.4,4189.3,0.004]
[1758708811207,16.01509315,4189.4,4189.3,0.004]
[1758708811407,15.15869281,4189.4,4189.3,0.004]
[1758708811848,15.53307193,4189.4,4189.3,0.004]
[1758708813445,16.38890185,4189.4,4189.3,0.004]
[1758708814552,20.35990185,4189.4,4189.3,0.004]
[1758708815351,19.50407193,4189.4,4189.3,0.004]
[1758708816251,20.35937163,4189.4,4189.3,0.004]
[1758708816448,20.35937414,4189.4,4189.3,0.004]
[1758708818474,19.50407193,4189.4,4189.3,0.004]
[1758708818656,19.07277193,4189.4,4189.3,0.004]
[1758708820138,13.43147804,4189.4,4189.3,0.004]
[1758708820371,15.95707414,4189.4,4189.3,0.004]
[1758708821138,16.38837414,4189.4,4189.3,0.004]
[1758708821647,15.95707414,4189.4,4189.3,0.004]
[1758708825257,15.10177193,4189.4,4189.3,0.004]
[1758708826380,15.10097193,4189.4,4189.3,0.004]
[1758708828306,16.39064111,4189.4,4189.3,0.004]
[1758708828786,17.32863857,4189.4,4189.3,0.004]
[1758708830494,16.03896939,4189.4,4189.3,0.004]
[1758708831409,16.49626939,4189.4,4189.3,0.004]
[1758708832292,3.17909061,4189.2,4189.1,0.004]
[1758708832591,10.37375951,4189.2,4189.1,0.004]
[1758708833371,9.08621288,4189.2,4189.1,0.004]
[1758708834397,3.17920458,4189.0,4188.9,0.004]
[1758708834561,10.6660407,4189.0,4188.9,0.004]
[1758708834765,12.43774149,4189.0,4188.9,0.004]
[1758708835585,12.53347455,4189.0,4188.9,0.004]
[1758708837000,12.01763843,4189.0,4188.9,0.004]
[1758708837166,12.53331842,4189.0,4188.9,0.004]
[1758708837999,12.90773176,4189.0,4188.9,0.004]
[1758708839203,12.90773176,4189.0,4188.9,0.4591]
[1758708839580,12.90773176,4189.0,4188.9,0.004]
[1758708844611,6.29846157,4188.9,4188.8,0.004]
[1758708844778,15.58464713,4188.9,4188.8,0.004]
[1758708847290,3.17943255,4188.6,4188.5,0.4433]
[1758708847495,4.98456752,4188.6,4188.5,0.004]
[1758708848090,4.98456752,4188.6,4188.5,0.4433]
[1758708848522,5.08029417,4188.6,4188.5,0.4433]
[1758708849309,7.24283216,4188.6,4188.5,0.4433]
[1758708850730,7.24283216,4188.6,4188.5,0.004]
[1758708851315,5.95337718,4188.6,4188.5,0.004]
[1758708853200,6.41067718,4188.6,4188.5,0.004]
[1758708853520,6.40987718,4188.6,4188.5,0.004]
[1758708853918,10.38087718,4188.6,4188.5,0.004]
[1758708854334,9.92357718,4188.6,4188.5,0.004]
[1758708857444,10.29801647,4188.6,4188.5,0.004]
[1758708861035,10.29901647,4188.6,4188.5,0.004]
[1758708863449,7.72521959,4188.4,4188.3,0.4428]
[1758708864436,7.72521959,4188.4,4188.3,0.004]
[1758708868143,7.72521959,4188.4,4188.3,0.4428]
[1758708869260,7.72521959,4188.4,4188.3,0.2524]
[1758708870244,7.72521959,4188.4,4188.3,0.004]
[1758708871777,11.69621959,4188.4,4188.3,0.004]
[1758708872787,7.72521959,4188.4,4188.3,0.004]
[1758708872954,11.69621959,4188.4,4188.3,0.2524]
[1758708873278,11.69621959,4188.4,4188.3,0.004]
[1758708873653,7.72521959,4188.4,4188.3,0.004]
[1758708873970,11.69621959,4188.4,4188.3,0.2524]
[1758708874190,11.69621959,4188.4,4188.3,0.004]
[1758708877423,3.17966057,4188.2,4188.1,0.2524]
[1758708877592,10.34745354,4188.2,4188.1,0.2524]
[1758708878275,10.34745354,4188.2,4188.1,0.6912]
[1758708878472,10.34745354,4188.2,4188.1,0.004]
[1758708878700,9.05660667,4188.2,4188.1,0.004]
[1758708880476,9.05580667,4188.2,4188.1,0.004]
[1758708880809,9.17537421,4188.2,4188.1,0.004]
[1758708881187,9.17537421,4188.2,4188.1,0.6912]
[1758708881714,9.17537421,4188.2,4188.1,0.2524]
[1758708881880,9.17537421,4188.2,4188.1,0.004]
[1758708884331,6.29891758,4188.1,4188.0,0.004]
[1758708884476,8.69916326,4188.1,4188.0,0.004]
[1758708885613,8.79490938,4188.1,4188.0,0.004]
[1758708892328,3.17977459,4188.0,4187.9,0.004]
[1758708892531,3.69545458,4188.0,4187.9,0.004]
[1758708892736,3.69545458,4188.0,4187.9,0.6811]
[1758708892919,6.01437616,4188.0,4187.9,0.6811]
[1758708893224,6.45357616,4188.0,4187.9,0.6811]
[1758708900821,6.45357616,4188.0,4187.9,0.2459]
[1758708907486,6.17983161,4187.9,4187.8,0.004]
[1758708907666,8.32542048,4187.9,4187.8,0.004]
[1758708907961,8.32542048,4187.9,4187.8,0.4386]
[1758708908128,8.32542048,4187.9,4187.8,0.6776]
[1758708911546,8.32542048,4187.9,4187.8,0.004]
[1758708919781,12.29542048,4187.9,4187.8,0.004]
[1758708922346,6.29908862,4187.8,4187.7,0.004]
[1758708922543,6.81476861,4187.8,4187.7,0.004]
[1758708922776,8.3422433,4187.8,4187.7,0.241]
[1758708923172,9.0603667,4187.8,4187.7,0.241]
[1758708923784,9.0603667,4187.8,4187.7,0.004]
[1758708926113,9.0603667,4187.8,4187.7,0.241]
[1758708926271,9.0603667,4187.8,4187.7,0.689]
[1758708928560,9.0603667,4187.8,4187.7,0.241]
[1758708931472,9.0603667,4187.8,4187.7,0.004]
[1758708934728,9.0595667,4187.8,4187.7,0.004]
[1758708935513,9.0595667,4187.8,4187.7,0.689]
[1758708939106,9.0595667,4187.8,4187.7,0.241]
[1758708942201,6.17994565,4187.7,4187.6,0.004]
[1758708942513,7.02036867,4187.7,4187.6,0.004]
[1758708944844,7.02036867,4187.7,4187.6,0.2507]
[1758708945811,7.02036867,4187.7,4187.6,0.004]
[1758708948556,10.98936867,4187.7,4187.6,0.004]
[1758708949256,16.6403104,4187.7,4187.6,0.004]
[1758708949450,6.18000267,4187.6,4187.5,0.004]
[1758708949608,9.08696881,4187.6,4187.5,0.004]
[1758708950253,9.18272455,4187.6,4187.5,0.004]
[1758708950751,9.65852455,4187.6,4187.5,0.004]
[1758708950906,9.61062455,4187.6,4187.5,0.004]
[1758708951107,9.18272455,4187.6,4187.5,0.004]
[1758708952029,9.55724926,4187.6,4187.5,0.004]
[1758708955542,13.52624926,4187.6,4187.5,0.004]
[1758708957349,6.2992597,4187.5,4187.4,0.004]
[1758708957550,8.65119236,4187.5,4187.4,0.004]
[1758708958150,8.746952,4187.5,4187.4,0.004]
[1758708960351,8.746952,4187.5,4187.4,0.2396]
[1758708961961,8.746152,4187.5,4187.4,0.2396]
[1758708963018,8.746152,4187.5,4187.4,0.6925]
[1758708964964,8.746152,4187.5,4187.4,0.2396]
[1758708965866,8.746152,4187.5,4187.4,0.004]
[1758708972870,8.746152,4187.5,4187.4,0.2382]
[1758708973281,8.747152,4187.5,4187.4,0.2382]
[1758708974368,6.18011673,4187.4,4187.3,0.004]
[1758708974683,6.69579672,4187.4,4187.3,0.004]
[1758708974866,0.51567999,4187.4,4187.3,0.004]
[1758708975063,1.29187539,4187.5,4187.3,0.004]
[1758708975064,0.71902027,4187.5,4187.3,0.004]
[1758708975277,0.71902027,4187.5,4187.3,0.4464]
[1758708976261,0.71902027,4187.5,4187.4,0.2342]
[1758708976545,0.71902027,4187.5,4187.4,3.06471673]
[1758708977174,0.001,4187.5,4187.4,3.06471673]
[1758708977484,0.71898934,4187.5,4187.4,17.56471673]
[1758708977882,0.001,4187.5,4187.4,17.56471673]
[1758708978049,0.001,4187.5,4187.4,17.68391673]
[1758708978646,0.001,4187.5,4187.4,21.65191673]
[1758708982729,0.001,4187.5,4187.4,19.2638]
[1758708984306,0.001,4187.5,4187.4,15.2958]
[1758708984506,0.001,4187.5,4187.4,19.2638]
[1758708984713,0.001,4187.5,4187.4,19.1446]
[1758708987214,0.09673581,4187.5,4187.4,19.1446]
[1758708987530,0.09673581,4187.5,4187.4,21.53271673]
[1758708987837,0.09673581,4187.5,4187.4,19.1446]
[1758708988928,0.09593581,4187.5,4187.4,19.1446]
[1758708990990,0.09593581,4187.5,4187.4,18.468]
[1758708991195,0.09593581,4187.5,4187.4,18.7022]
[1758708991527,0.09593581,4187.5,4187.4,19.1446]
[1758708995542,0.09593581,4187.5,4187.4,19.1446]
[1758708995911,0.09593581,4187.5,4187.4,18.7022]
[1758708998803,0.09593581,4187.5,4187.4,14.5]
[1758708999038,3.16469551,4187.5,4187.4,18.467]
[1758708999635,0.09593581,4187.5,4187.4,18.467]
[1758709000154,0.09593581,4187.5,4187.4,19.1436]
[1758709003234,0.61051329,4187.5,4187.4,19.1436]
[1758709006347,0.61051329,4187.5,4187.4,18.467]
[1758709007806,1.27881329,4187.5,4187.4,18.467]
[1758709009335,2.99857299,4187.5,4187.4,18.467]
[1758709009537,3.66687299,4187.5,4187.4,18.467]
[1758709010542,4.45887299,4187.5,4187.4,18.467]
[1758709010742,5.21989916,4187.5,4187.4,14.5]
[1758709010919,5.21989916,4187.5,4187.4,18.467]
[1758709011449,5.86312101,4187.5,4187.4,18.467]
[1758709013976,5.86312101,4187.5,4187.4,3.967]
[1758709014328,5.86312101,4187.5,4187.4,18.467]
[1758709014529,5.10209484,4187.5,4187.4,18.467]
[1758709015345,4.45887299,4187.5,4187.4,18.467]
[1758709016172,4.45807299,4187.5,4187.4,18.467]
[1758709017237,4.45807299,4187.5,4187.4,3.967]
[1758709017872,4.45807299,4187.5,4187.4,18.467]
[1758709018742,4.23177299,4187.5,4187.4,18.467]
[1758709020557,4.46447299,4187.5,4187.4,18.467]
[1758709020890,4.46447299,4187.5,4187.4,3.967]
[1758709021291,5.10769484,4187.5,4187.4,18.467]
[1758709022268,4.87499484,4187.5,4187.4,18.467]
[1758709022785,4.43299484,4187.5,4187.4,18.467]
[1758709024029,4.86839484,4187.5,4187.4,18.467]
[1758709024389,4.86839484,4187.5,4187.4,3.967]
[1758709024770,2.04493514,4187.5,4187.4,3.967]
[1758709024966,2.04493514,4187.5,4187.4,18.6921]
[1758709024967,1.40171329,4187.5,4187.4,18.6921]
[1758709027564,3.78977299,4187.5,4187.4,18.467]
[1758709027979,1.40171329,4187.5,4187.4,3.967]
[1758709028499,1.40171329,4187.5,4187.4,18.467]
[1758709031523,1.40171329,4187.5,4187.4,4.1921]
[1758709031915,1.40171329,4187.5,4187.4,19.1532]
[1758709033016,0.61071329,4187.5,4187.4,19.1532]
[1758709035338,0.61071329,4187.5,4187.4,21.54131673]
[1758709035542,0.61071329,4187.5,4187.4,19.1532]
[1758709043357,0.60991329,4187.5,4187.4,19.1532]
[1758709043549,0.60991329,4187.5,4187.4,22.1532]
[1758709044352,0.60991329,4187.5,4187.4,19.1532]
[1758709044818,0.60991329,4187.5,4187.4,18.6921]
[1758709052989,0.60991329,4187.5,4187.4,18.467]
[1758709053864,0.60991329,4187.5,4187.4,18.7035]
[1758709057483,0.60991329,4187.5,4187.4,18.467]
[1758709057690,0.60991329,4187.5,4187.4,19.1646]
[1758709064884,0.60991329,4187.5,4187.4,18.7035]
[1758709066216,0.60991329,4187.5,4187.4,18.467]
[1758709070309,0.60911329,4187.5,4187.4,18.467]
[1758709072324,0.60911329,4187.5,4187.4,18.6931]
[1758709073021,0.60911329,4187.5,4187.4,19.1582]
[1758709075524,0.60911329,4187.5,4187.4,18.6931]
[1758709076246,0.60911329,4187.5,4187.4,18.467]
[1758709081643,2.99717299,4187.5,4187.4,18.467]
[1758709081846,3.64039484,4187.5,4187.4,18.467]
[1758709082046,1.25233514,4187.5,4187.4,18.467]
[1758709082339,3.64039484,4187.5,4187.4,14.5]
[1758709082543,4.33669484,4187.5,4187.4,18.464]
[1758709082754,1.30541329,4187.5,4187.4,18.464]
[1758709082956,1.94863514,4187.5,4187.4,18.464]
[1758709083154,1.30541329,4187.5,4187.4,18.464]
[1758709083673,3.18011673,4187.4,4187.3,0.004]
[1758709083838,5.02280963,4187.4,4187.3,3.071]
[1758709084034,4.39099421,4187.4,4187.3,3.071]
[1758709084267,4.39099421,4187.4,4187.3,3.968]
[1758709084449,5.34705258,4187.4,4187.3,3.968]
[1758709085363,6.20688344,4187.4,4187.3,3.968]
[1758709085566,2.26263585,4187.4,4187.3,3.968]
[1758709085767,3.69469421,4187.4,4187.3,4.1978]
[1758709087548,3.69469421,4187.4,4187.3,3.968]
[1758709087749,3.69469421,4187.4,4187.3,18.468]
[1758709088438,4.39099421,4187.4,4187.3,18.468]
[1758709090776,4.39099421,4187.4,4187.3,3.968]
[1758709091274,5.22689075,4187.4,4187.3,18.468]
[1758709092755,5.22689075,4187.4,4187.3,14.504]
[1758709092950,5.22689075,4187.4,4187.3,3.968]
[1758709096393,4.53059075,4187.4,4187.3,3.968]
[1758709097464,4.52979075,4187.4,4187.3,3.968]
[1758709098276,4.52979075,4187.4,4187.3,0.004]
[1758709100696,4.53079075,4187.4,4187.3,0.004]
[1758709101196,4.53079075,4187.4,4187.3,0.2331]
[1758709101576,4.53079075,4187.4,4187.3,0.004]
[1758709105024,4.99089075,4187.4,4187.3,0.004]
[1758709105877,5.21979075,4187.4,4187.3,0.004]
[1758709106103,4.53079075,4187.4,4187.3,0.004]
[1758709106403,5.39062161,4187.4,4187.3,0.004]
[1758709110843,5.39062161,4187.4,4187.3,0.2331]
[1758709112912,5.39062161,4187.4,4187.3,0.004]
[1758709113113,4.53079075,4187.4,4187.3,0.004]
[1758709118246,3.69489421,4187.4,4187.3,0.004]
[1758709118576,3.69489421,4187.4,4187.3,0.2331]
[1758709122045,3.69489421,4187.4,4187.3,0.004]
[1758709124591,3.69409421,4187.4,4187.3,0.004]
[1758709132118,2.55337376,4187.3,4187.2,3.968]
[1758709132316,3.94734223,4187.3,4187.2,3.968]
[1758709132819,3.78614168,4187.3,4187.2,3.968]
[1758709135619,1.39796792,4187.3,4187.2,4.2162]
[1758709135828,2.18996792,4187.3,4187.2,4.6555]
[1758709136124,4.57814168,4187.3,4187.2,4.6555]
[1758709136330,4.57814168,4187.3,4187.2,19.1555]
[1758709136888,5.43916721,4187.3,4187.2,19.1555]
[1758709137590,4.57814168,4187.3,4187.2,19.1555]
[1758709139921,4.57814168,4187.3,4187.2,18.9073]
[1758709140088,4.57814168,4187.3,4187.2,18.468]
[1758709141318,6.13038982,4187.3,4187.2,3.967]
[1758709145338,6.13038982,4187.3,4187.2,0.004]
[1758709147248,5.89448982,4187.3,4187.2,0.004]
[1758709147630,2.43423079,4187.2,4187.1,3.987]
[1758709147804,2.43423079,4187.2,4187.1,4.4477]
[1758709147805,3.80960771,4187.2,4187.1,4.4477]
[1758709148113,2.94880827,4187.2,4187.1,4.4477]
[1758709148313,3.80960771,4187.2,4187.1,4.6924]
[1758709148500,2.94880827,4187.2,4187.1,4.6924]
[1758709151736,2.94800827,4187.2,4187.1,4.6924]
[1758709152730,2.94800827,4187.2,4187.1,4.2317]
[1758709152942,2.94800827,4187.2,4187.1,18.7317]
[1758709153131,1.42057692,4187.2,4187.1,18.7317]
[1758709153333,3.80880771,4187.2,4187.1,18.7317]
[1758709154502,3.80880771,4187.2,4187.1,19.1621]
[1758709156834,3.80880771,4187.2,4187.1,4.6621]
[1758709157606,3.80880771,4187.2,4187.1,4.2317]
[1758709158742,1.42057692,4187.2,4187.1,4.2317]
[1758709158907,3.80880771,4187.2,4187.1,4.2317]
[1758709164637,3.80880771,4187.2,4187.1,3.987]
[1758709166261,1.42057692,4187.2,4187.1,4.2136]
[1758709166463,1.35177748,4187.2,4187.1,4.644]
[1758709167072,3.74000827,4187.2,4187.1,4.644]